Workbook

Sheet RZiS
B2: Tabela nr 1. Rachunek zysków i strat | H2: PIERWSZY ROK PROGNOZY
B4: Lp. | C4: Rachunek zysków i strat | D4: Jedn. | E4: =IF($H$4="","n-3",IF($H$4="n","n-3",$H$4-3)) -> 2020 | F4: =IF($H$4="","n-2",IF($H$4="n","n-2",$H$4-2)) -> 2021 | G4: =IF($H$4="","n-1",IF($H$4="n","n-1",$H$4-1)) -> 2022 | H4: 2023 | I4: =IF($H$4="","n+1",IF($H$4="n","n+1",$H$4+1)) -> 2024 | J4: =IF($H$4="","n+2",IF($H$4="n","n+2",$H$4+2)) -> 2025 | K4: =IF($H$4="","n+3",IF($H$4="n","n+3",$H$4+3)) -> 2026 | L4: =IF($H$4="","n+4",IF($H$4="n","n+4",$H$4+4)) -> 2027 | M4: =IF($H$4="","n+5",IF($H$4="n","n+5",$H$4+5)) -> 2028 | N4: =IF($H$4="","n+6",IF($H$4="n","n+6",$H$4+6)) -> 2029 | O4: =IF($H$4="","n+7",IF($H$4="n","n+7",$H$4+7)) -> 2030 | P4: =IF($H$4="","n+8",IF($H$4="n","n+8",$H$4+8)) -> 2031 | Q4: =IF($H$4="","n+9",IF($H$4="n","n+9",$H$4+9)) -> 2032 | R4: =IF($H$4="","n+10",IF($H$4="n","n+10",$H$4+10)) -> 2033 | S4: =IF($H$4="","n+11",IF($H$4="n","n+11",$H$4+11)) -> 2034 | T4: =IF($H$4="","n+12",IF($H$4="n","n+12",$H$4+12)) -> 2035 | U4: =IF($H$4="","n+13",IF($H$4="n","n+13",$H$4+13)) -> 2036 | V4: =IF($H$4="","n+14",IF($H$4="n","n+14",$H$4+14)) -> 2037 | W4: =IF($H$4="","n+15",IF($H$4="n","n+15",$H$4+15)) -> 2038 | X4: =IF($H$4="","n+16",IF($H$4="n","n+16",$H$4+16)) -> 2039 | Y4: =IF($H$4="","n+17",IF($H$4="n","n+17",$H$4+17)) -> 2040 | Z4: …
B5: 1 | C5: 2 | D5: 3 | E5: 4 | F5: 5 | G5: 6 | H5: 7 | I5: 8 | J5: 9 | K5: 10 | L5: 11 | M5: 12 | N5: 13 | O5: 14 | P5: 15 | Q5: 16 | R5: 17 | S5: 18 | T5: 19 | U5: 20 | V5: 21 | W5: 22 | X5: 23 | Y5: 24 | Z5: …
B6: A. | C6: Przychody netto ze sprzedaży i zrównane z nimi | D6: zł
B7: B. | C7: Koszty działalności operacyjnej | D7: zł | E7: =SUM(E8:E15) -> 0 | F7: 0 | G7: 0 | H7: 0 | I7: 0 | J7: 0 | K7: 0 | L7: 0 | M7: 0 | N7: 0 | O7: 0 | P7: 0 | Q7: 0 | R7: 0 | S7: 0 | T7: 0 | U7: 0 | V7: 0 | W7: 0 | X7: 0 | Y7: 0 | Z7: =SUM(Z8:Z15) -> 0
B8: I. | C8: Amortyzacja | D8: zł
B9: II. | C9: Zużycie materiałów i energii | D9: zł
B10: III. | C10: Usługi obce | D10: zł
B11: IV. | C11: Podatki i opłaty | D11: zł
B12: V. | C12: Wynagrodzenia | D12: zł
B13: VI. | C13: Ubezpieczenia społeczne i inne świadczenia | D13: zł
B14: VII. | C14: Pozostałe koszty rodzajowe | D14: zł
B15: VIII. | C15: Wartość sprzedanych towarów i materiałów | D15: zł
B16: C. | C16: Zysk/strata ze sprzedaży (A-B) | D16: zł | E16: =E6-E7 -> 0 | F16: 0 | G16: 0 | H16: 0 | I16: 0 | J16: 0 | K16: 0 | L16: 0 | M16: 0 | N16: 0 | O16: 0 | P16: 0 | Q16: 0 | R16: 0 | S16: 0 | T16: 0 | U16: 0 | V16: 0 | W16: 0 | X16: 0 | Y16: 0 | Z16: =Z6-Z7 -> 0
B17: D. | C17: Pozostałe przychody operacyjne, w tym: | D17: zł
C18: - rozliczenie wnioskowanej dotacji z MF EOG | D18: zł
B19: E. | C19: Pozostałe koszty operacyjne | D19: zł
B20: F. | C20: Zysk/strata z działalności operacyjnej (C+D-E) | D20: zł | E20: =E16+E17-E19 -> 0 | F20: 0 | G20: 0 | H20: 0 | I20: 0 | J20: 0 | K20: 0 | L20: 0 | M20: 0 | N20: 0 | O20: 0 | P20: 0 | Q20: 0 | R20: 0 | S20: 0 | T20: 0 | U20: 0 | V20: 0 | W20: 0 | X20: 0 | Y20: 0 | Z20: =Z16+Z17-Z19 -> 0
B21: G. | C21: Przychody finansowe | D21: zł
B22: H. | C22: Koszty finansowe, w tym: | D22: zł
C23: - odsetki od wnioskowanej pożyczki z NFOŚiGW (jeżeli dotyczy) | D23: zł
B24: I. | C24: Zysk/strata brutto (F+G-H) | D24: zł | E24: =E20+E21-E22 -> 0 | F24: 0 | G24: 0 | H24: 0 | I24: 0 | J24: 0 | K24: 0 | L24: 0 | M24: 0 | N24: 0 | O24: 0 | P24: 0 | Q24: 0 | R24: 0 | S24: 0 | T24: 0 | U24: 0 | V24: 0 | W24: 0 | X24: 0 | Y24: 0 | Z24: =Z20+Z21-Z22 -> 0
B25: J. | C25: Podatek dochodowy | D25: zł
B26: K. | C26: Pozostałe obowiązkowe zmniejszenie zysku/zwiększenie straty | D26: zł
B27: L. | C27: Zysk/strata netto (I-J-K) | D27: zł | E27: =E24-E25-E26 -> 0 | F27: =F24-F25-F26 -> 0 | G27: 0 | H27: 0 | I27: 0 | J27: 0 | K27: 0 | L27: 0 | M27: 0 | N27: 0 | O27: 0 | P27: 0 | Q27: 0 | R27: 0 | S27: 0 | T27: =T24-T25-T26 -> 0 | U27: 0 | V27: 0 | W27: 0 | X27: 0 | Y27: 0 | Z27: 0
C32: ……………………………………………………………….
C33: Data i podpis Wnioskodawcy
C35: UWAGA: Należy wypełnić tylko pola zaznaczone żółtym kolorem.

Sheet Bilans
B2: Tabela nr 2. Bilans | H2: PIERWSZY ROK PROGNOZY
B4: Lp. | C4: Bilans | D4: Jedn. | E4: =IF($H$4="","n-3",IF($H$4="n","n-3",$H$4-3)) -> 2020 | F4: =IF($H$4="","n-2",IF($H$4="n","n-2",$H$4-2)) -> 2021 | G4: =IF($H$4="","n-1",IF($H$4="n","n-1",$H$4-1)) -> 2022 | H4: 2023 | I4: =IF($H$4="","n+1",IF($H$4="n","n+1",$H$4+1)) -> 2024 | J4: =IF($H$4="","n+2",IF($H$4="n","n+2",$H$4+2)) -> 2025 | K4: =IF($H$4="","n+3",IF($H$4="n","n+3",$H$4+3)) -> 2026 | L4: =IF($H$4="","n+4",IF($H$4="n","n+4",$H$4+4)) -> 2027 | M4: =IF($H$4="","n+5",IF($H$4="n","n+5",$H$4+5)) -> 2028 | N4: =IF($H$4="","n+6",IF($H$4="n","n+6",$H$4+6)) -> 2029 | O4: =IF($H$4="","n+7",IF($H$4="n","n+7",$H$4+7)) -> 2030 | P4: =IF($H$4="","n+8",IF($H$4="n","n+8",$H$4+8)) -> 2031 | Q4: =IF($H$4="","n+9",IF($H$4="n","n+9",$H$4+9)) -> 2032 | R4: =IF($H$4="","n+10",IF($H$4="n","n+10",$H$4+10)) -> 2033 | S4: =IF($H$4="","n+11",IF($H$4="n","n+11",$H$4+11)) -> 2034 | T4: =IF($H$4="","n+12",IF($H$4="n","n+12",$H$4+12)) -> 2035 | U4: =IF($H$4="","n+13",IF($H$4="n","n+13",$H$4+13)) -> 2036 | V4: =IF($H$4="","n+14",IF($H$4="n","n+14",$H$4+14)) -> 2037 | W4: =IF($H$4="","n+15",IF($H$4="n","n+15",$H$4+15)) -> 2038 | X4: =IF($H$4="","n+16",IF($H$4="n","n+16",$H$4+16)) -> 2039 | Y4: =IF($H$4="","n+17",IF($H$4="n","n+17",$H$4+17)) -> 2040 | Z4: …
B5: 1 | C5: 2 | D5: 3 | E5: 4 | F5: 5 | G5: 6 | H5: 7 | I5: 8 | J5: 9 | K5: 10 | L5: 11 | M5: 12 | N5: 13 | O5: 14 | P5: 15 | Q5: 16 | R5: 17 | S5: 18 | T5: 19 | U5: 20 | V5: 21 | W5: 22 | X5: 23 | Y5: 24 | Z5: …
C6: AKTYWA
B7: A. | C7: Aktywa trwałe | D7: zł | E7: =E8+E9+E11+E12+E13 -> 0 | F7: 0 | G7: 0 | H7: 0 | I7: 0 | J7: 0 | K7: 0 | L7: 0 | M7: 0 | N7: 0 | O7: 0 | P7: 0 | Q7: 0 | R7: 0 | S7: 0 | T7: 0 | U7: 0 | V7: 0 | W7: 0 | X7: 0 | Y7: 0 | Z7: 0
B8: I. | C8: Wartości niematerialne i prawne | D8: zł
B9: II. | C9: Rzeczowe aktywa trwałe, w tym: | D9: zł
C10: - z tytułu wnioskowanego przedsięwzięcia | D10: zł
B11: III. | C11: Należności długoterminowe | D11: zł
B12: IV. | C12: Inwestycje długoterminowe | D12: zł
B13: V. | C13: Długoterminowe rozliczenia międzyokresowe | D13: zł
B14: B. | C14: Aktywa obrotowe | D14: zł | E14: =E15+E16+E17+E19 -> 0 | F14: =F15+F16+F17+F19 -> 0 | G14: 0 | H14: 0 | I14: 0 | J14: 0 | K14: 0 | L14: 0 | M14: 0 | N14: 0 | O14: 0 | P14: 0 | Q14: 0 | R14: 0 | S14: 0 | T14: 0 | U14: 0 | V14: 0 | W14: 0 | X14: 0 | Y14: 0 | Z14: 0
B15: I. | C15: Zapasy | D15: zł
B16: II. | C16: Należności krótkoterminowe | D16: zł
B17: III. | C17: Inwestycje krótkoterminowe, w tym: | D17: zł
C18: - środki pieniężne i inne aktywa pieniężne | D18: zł
B19: IV. | C19: Krótkoterminowe rozliczenia międzyokresowe | D19: zł
B20: C. | C20: Należne wpłaty na kapitał (fundusz) podstawowy | D20: zł
B21: D. | C21: Udziały (akcje) własne | D21: zł
C22: Aktywa razem (A+B) | D22: zł | E22: =E14+E7+E20+E21 -> 0 | F22: =F14+F7+F20+F21 -> 0 | G22: 0 | H22: 0 | I22: 0 | J22: 0 | K22: 0 | L22: 0 | M22: 0 | N22: 0 | O22: 0 | P22: 0 | Q22: 0 | R22: 0 | S22: 0 | T22: 0 | U22: 0 | V22: 0 | W22: 0 | X22: 0 | Y22: 0 | Z22: 0
C23: PASYWA
B24: A. | C24: Kapitał (fundusz) własny | D24: zł | E24: =SUM(E25:E31) -> 0 | F24: 0 | G24: 0 | H24: 0 | I24: 0 | J24: 0 | K24: 0 | L24: 0 | M24: 0 | N24: 0 | O24: 0 | P24: 0 | Q24: 0 | R24: 0 | S24: 0 | T24: 0 | U24: 0 | V24: 0 | W24: 0 | X24: 0 | Y24: 0 | Z24: 0
B25: I. | C25: Kapitał (fundusz) podstawowy | D25: zł
B26: II. | C26: Kapitał (fundusz) zapasowy | D26: zł
B27: III. | C27: Kapitał (fundusz) rezerwowy z aktualizacji wyceny | D27: zł
B28: IV. | C28: Pozostałe kapitały (fundusze) rezerwowe | D28: zł
B29: V. | C29: Zysk (strata) z lat ubiegłych | D29: zł
B30: VI. | C30: Zysk (strata) netto | D30: zł
B31: VII. | C31: Odpisy z zysku netto w ciągu roku obrotowego (-) | D31: zł
B32: B. | C32: Zobowiązania i rezerwy na zobowiązania | D32: zł | E32: =E33+E34+E36+E38 -> 0 | F32: 0 | G32: 0 | H32: 0 | I32: 0 | J32: 0 | K32: 0 | L32: 0 | M32: 0 | N32: 0 | O32: 0 | P32: 0 | Q32: 0 | R32: 0 | S32: 0 | T32: 0 | U32: 0 | V32: 0 | W32: 0 | X32: 0 | Y32: 0 | Z32: 0
B33: I. | C33: Rezerwy na zobowiązania | D33: zł
B34: II. | C34: Zobowiązania długoterminowe, w tym: | D34: zł
C35: - z tytułu wnioskowanej pożyczki z NFOŚiGW (jeżeli dotyczy) | D35: zł
B36: III. | C36: Zobowiązania krótkoterminowe, w tym: | D36: zł
C37: - z tytułu wnioskowanej pożyczki z NFOŚiGW (jeżeli dotyczy) | D37: zł
B38: IV. | C38: Rozliczenia międzyokresowe, w tym: | D38: zł
C39: - rozliczenie wnioskowanej dotacji z MF EOG | D39: zł
C40: Suma Pasywów (A+B) | D40: zł | E40: =E32+E24 -> 0 | F40: 0 | G40: 0 | H40: 0 | I40: 0 | J40: 0 | K40: 0 | L40: 0 | M40: 0 | N40: 0 | O40: 0 | P40: 0 | Q40: 0 | R40: 0 | S40: 0 | T40: 0 | U40: 0 | V40: 0 | W40: 0 | X40: 0 | Y40: 0 | Z40: 0
E41: =IF(ROUND(E22,2)=ROUND(E40,2),"","BŁĄD") ->  | F41: =IF(F22=F40,"","BŁĄD") -> 
C45: ……………………………………………………………….
C46: Data i podpis Wnioskodawcy
C48: UWAGA: Należy wypełnić tylko pola zaznaczone żółtym kolorem.
C50: sprawdzenie | E50: =E40=E22 -> TRUE | F50: TRUE | G50: TRUE | H50: TRUE | I50: TRUE | J50: TRUE | K50: TRUE | L50: TRUE | M50: TRUE | N50: TRUE | O50: TRUE | P50: TRUE | Q50: TRUE | R50: TRUE | S50: TRUE | T50: TRUE | U50: TRUE | V50: TRUE | W50: TRUE | X50: TRUE | Y50: TRUE | Z50: TRUE

Sheet Przepływy
B2: Tabela nr 3. Rachunek przepływów pieniężnych | H2: PIERWSZY ROK PROGNOZY
B4: Lp. | C4: Rachunek przepływów pieniężnych | D4: Jedn. | E4: =IF($H$4="","n-3",IF($H$4="n","n-3",$H$4-3)) -> 2020 | F4: =IF($H$4="","n-2",IF($H$4="n","n-2",$H$4-2)) -> 2021 | G4: =IF($H$4="","n-1",IF($H$4="n","n-1",$H$4-1)) -> 2022 | H4: 2023 | I4: =IF($H$4="","n+1",IF($H$4="n","n+1",$H$4+1)) -> 2024 | J4: =IF($H$4="","n+2",IF($H$4="n","n+2",$H$4+2)) -> 2025 | K4: =IF($H$4="","n+3",IF($H$4="n","n+3",$H$4+3)) -> 2026 | L4: =IF($H$4="","n+4",IF($H$4="n","n+4",$H$4+4)) -> 2027 | M4: =IF($H$4="","n+5",IF($H$4="n","n+5",$H$4+5)) -> 2028 | N4: =IF($H$4="","n+6",IF($H$4="n","n+6",$H$4+6)) -> 2029 | O4: =IF($H$4="","n+7",IF($H$4="n","n+7",$H$4+7)) -> 2030 | P4: =IF($H$4="","n+8",IF($H$4="n","n+8",$H$4+8)) -> 2031 | Q4: =IF($H$4="","n+9",IF($H$4="n","n+9",$H$4+9)) -> 2032 | R4: =IF($H$4="","n+10",IF($H$4="n","n+10",$H$4+10)) -> 2033 | S4: =IF($H$4="","n+11",IF($H$4="n","n+11",$H$4+11)) -> 2034 | T4: =IF($H$4="","n+12",IF($H$4="n","n+12",$H$4+12)) -> 2035 | U4: =IF($H$4="","n+13",IF($H$4="n","n+13",$H$4+13)) -> 2036 | V4: =IF($H$4="","n+14",IF($H$4="n","n+14",$H$4+14)) -> 2037 | W4: =IF($H$4="","n+15",IF($H$4="n","n+15",$H$4+15)) -> 2038 | X4: =IF($H$4="","n+16",IF($H$4="n","n+16",$H$4+16)) -> 2039 | Y4: =IF($H$4="","n+17",IF($H$4="n","n+17",$H$4+17)) -> 2040 | Z4: …
B5: 1 | C5: 2 | D5: 3 | E5: 4 | F5: 5 | G5: 6 | H5: 7 | I5: 8 | J5: 9 | K5: 10 | L5: 11 | M5: 12 | N5: 13 | O5: 14 | P5: 15 | Q5: 16 | R5: 17 | S5: 18 | T5: 19 | U5: 20 | V5: 21 | W5: 22 | X5: 23 | Y5: 24 | Z5: …
B6: A. | C6: Przepływy środków pieniężnych z działalności operacyjnej
B7: I. | C7: Zysk ( strata ) netto | D7: zł | E7: =RZiS!E27 -> 0 | F7: =RZiS!F27 -> 0 | G7: =RZiS!G27 -> 0 | H7: =RZiS!H27 -> 0 | I7: =RZiS!I27 -> 0 | J7: =RZiS!J27 -> 0 | K7: =RZiS!K27 -> 0 | L7: =RZiS!L27 -> 0 | M7: =RZiS!M27 -> 0 | N7: =RZiS!N27 -> 0 | O7: =RZiS!O27 -> 0 | P7: =RZiS!P27 -> 0 | Q7: =RZiS!Q27 -> 0 | R7: =RZiS!R27 -> 0 | S7: =RZiS!S27 -> 0 | T7: =RZiS!T27 -> 0 | U7: =RZiS!U27 -> 0 | V7: =RZiS!V27 -> 0 | W7: =RZiS!W27 -> 0 | X7: =RZiS!X27 -> 0 | Y7: =RZiS!Y27 -> 0 | Z7: =RZiS!Z27 -> 0
B8: II. | C8: Korekty razem | D8: zł | E8: =SUM(E9:E18) -> 0 | F8: =SUM(F9:F18) -> 0 | G8: 0 | H8: 0 | I8: 0 | J8: 0 | K8: 0 | L8: 0 | M8: 0 | N8: 0 | O8: 0 | P8: 0 | Q8: 0 | R8: 0 | S8: 0 | T8: 0 | U8: 0 | V8: 0 | W8: 0 | X8: 0 | Y8: 0 | Z8: 0
B9: 1. | C9: Amortyzacja | D9: zł | E9: =RZiS!E8 -> 0 | F9: =RZiS!F8 -> 0 | G9: =RZiS!G8 -> 0 | H9: =RZiS!H8 -> 0 | I9: =RZiS!I8 -> 0 | J9: =RZiS!J8 -> 0 | K9: =RZiS!K8 -> 0 | L9: =RZiS!L8 -> 0 | M9: =RZiS!M8 -> 0 | N9: =RZiS!N8 -> 0 | O9: =RZiS!O8 -> 0 | P9: =RZiS!P8 -> 0 | Q9: =RZiS!Q8 -> 0 | R9: =RZiS!R8 -> 0 | S9: =RZiS!S8 -> 0 | T9: =RZiS!T8 -> 0 | U9: =RZiS!U8 -> 0 | V9: =RZiS!V8 -> 0 | W9: =RZiS!W8 -> 0 | X9: =RZiS!X8 -> 0 | Y9: =RZiS!Y8 -> 0 | Z9: =RZiS!Z8 -> 0
B10: 2. | C10: Zysk/strata z tytułu różnic kursowych | D10: zł
B11: 3. | C11: Odsetki i udziały w zyskach (dywidendy) | D11: zł
B12: 4. | C12: Zysk/strata z działalności inwestycyjnej | D12: zł
B13: 5. | C13: Zmiana stanu rezerw | D13: zł
B14: 6. | C14: Zmiana stanu zapasów | D14: zł
B15: 7. | C15: Zmiana stanu należności | D15: zł
B16: 8. | C16: Zmiana stanu zobowiązań krótkoterminowych, z wyjątkiem pożyczek i kredytów | D16: zł
B17: 9. | C17: Zmiana stanu rozliczeń międzyokresowych | D17: zł
B18: 10. | C18: Inne korekty | D18: zł
B19: III. | C19: Przepływy pieniężne netto z działalności operacyjnej (I±II) | D19: zł | E19: =E7+E8 -> 0 | F19: 0 | G19: 0 | H19: 0 | I19: 0 | J19: 0 | K19: 0 | L19: 0 | M19: 0 | N19: 0 | O19: 0 | P19: 0 | Q19: 0 | R19: 0 | S19: 0 | T19: 0 | U19: 0 | V19: 0 | W19: 0 | X19: 0 | Y19: 0 | Z19: 0
B20: B. | C20: Przepływy środków pieniężnych z działalności inwestycyjnej
B21: I. | C21: Wpływy | D21: zł
B22: II. | C22: Wydatki, w tym: | D22: zł
C23: - z tytułu wnioskowanego przedsięwzięcia | D23: zł
B24: III. | C24: Przepływy pieniężne netto z działalności inwestycyjnej (I-II) | D24: zł | E24: =E21-E22 -> 0 | F24: 0 | G24: 0 | H24: 0 | I24: 0 | J24: 0 | K24: 0 | L24: 0 | M24: 0 | N24: 0 | O24: 0 | P24: 0 | Q24: 0 | R24: 0 | S24: 0 | T24: 0 | U24: 0 | V24: 0 | W24: 0 | X24: 0 | Y24: 0 | Z24: 0
B25: C. | C25: Przepływy środków pieniężnych z działalności finansowej
B26: I. | C26: Wpływy, w tym: | D26: zł
C27: - z tytułu wnioskowanej dotacji MF EOG / pożyczki z NFOŚiGW (jeżeli dotyczy) | D27: zł
B28: II. | C28: Wydatki, w tym: | D28: zł
C29: Spłaty kredytów i pożyczek, w tym: | D29: zł
C30: - z tytułu wnioskowanej pożyczki z NFOŚiGW (jeżeli dotyczy) | D30: zł
C31: Odsetki, w tym: | D31: zł
C32: - spłata odsetek od wnioskowanej pożyczki z NFOŚiGW (jeżeli dotyczy) | D32: zł
C33: Pozostałe wydatki finansowe | D33: zł
B34: III. | C34: Przepływy pieniężne netto z działalności finansowej (I-II) | D34: zł | E34: =E26-E28 -> 0 | F34: 0 | G34: 0 | H34: 0 | I34: 0 | J34: 0 | K34: 0 | L34: 0 | M34: 0 | N34: 0 | O34: 0 | P34: 0 | Q34: 0 | R34: 0 | S34: 0 | T34: 0 | U34: 0 | V34: 0 | W34: 0 | X34: 0 | Y34: 0 | Z34: 0
B35: D. | C35: Przepływy pieniężne netto razem (A.III±B.III±C.III) | D35: zł | E35: =E19+E24+E34 -> 0 | F35: 0 | G35: 0 | H35: 0 | I35: 0 | J35: 0 | K35: 0 | L35: 0 | M35: 0 | N35: 0 | O35: 0 | P35: 0 | Q35: 0 | R35: 0 | S35: 0 | T35: 0 | U35: 0 | V35: 0 | W35: 0 | X35: 0 | Y35: 0 | Z35: 0
B36: E. | C36: Bilansowa zmiana stanu środków pieniężnych | D36: zł
B37: F. | C37: Środki pieniężne na początek okresu | D37: zł
B38: G. | C38: Środki pieniężne na koniec okresu (F±D) | D38: zł | E38: =E37+E35 -> 0 | F38: 0 | G38: 0 | H38: 0 | I38: 0 | J38: 0 | K38: 0 | L38: 0 | M38: 0 | N38: 0 | O38: 0 | P38: 0 | Q38: 0 | R38: 0 | S38: 0 | T38: 0 | U38: 0 | V38: 0 | W38: 0 | X38: 0 | Y38: 0 | Z38: 0
C43: ……………………………………………………………….
C44: Data i podpis Wnioskodawcy
C47: UWAGA: Należy wypełnić tylko pola zaznaczone żółtym kolorem.
